Cogmind - Beta 14 @@@ ROGUE MODE // 2025.01.15 @ 18:41:45 Player: star Result: Destroyed by 0K-0EH(R) with Subdweller Laser Performance ------------- Evolutions (0) 0 Regions Visited (2) 400 Robots Destroyed (11) 55 Value Destroyed (375) 375 Prototype IDs (11) 220 Alien Tech Used (0) 0 Bonus (0) 0 TOTAL SCORE: 1050 Bonus ------- None Cogmind --------- Core Integrity 0/250 Matter 280/300 Energy 199/200 System Corruption 0% Temperature Cool (6) Movement Walking (210) Ox1 Location -10/Subcaves Parts ------- > --- POWER (1) -------- Subdweller Power Source > --- PROPULSION (2) --- Makeshift Leg Subdweller Monowheel > --- UTILITY (2) ------ Large Storage Unit Light Armor Plating > --- WEAPON (2) ------- Subdweller Laser Subdweller Machine Gun > --- INVENTORY (15) --- Subdweller Power Source Cargo Legs Makeshift System Shield Makeshift System Restoration Module Peak State ------------ > --- POWER ------------ Subdweller Power Source > --- PROPULSION ------- Makeshift Leg Subdweller Monowheel > --- UTILITY ---------- Large Storage Unit Light Armor Plating > --- WEAPON ----------- Subdweller Laser Subdweller Machine Gun > --- INVENTORY -------- Cargo Legs Makeshift System Shield Makeshift System Restoration Module [Rating: 16] Favorites ----------- Power Subdweller Power Source Engine Subdweller Power Source Propulsion Subdweller Monowheel Leg Makeshift Leg Wheel Subdweller Monowheel Utility Light Armor Plating Storage Small Storage Unit Protection Light Armor Plating Weapon Assault Rifle Energy Gun Subdweller Laser Ballistic Gun Assault Rifle Build | -11 -10 -10 ------- Run | Yrd Mat Sub Slots Evolved . | . . . Power . | . . . Propulsion . | . . . Utility . | . . . Weapon . | . . . Parts Attached 19 | 6 1 12 Power 3 | 1 . 2 Engine 3 | 1 . 2 Core . | . . . Reactor . | . . . Propulsion 5 | 2 . 3 Treads . | . . . Leg 1 | . . 1 Wheel 4 | 2 . 2 Hover . | . . . Flight . | . . . Utility 5 | 1 1 3 Device . | . . . Storage 2 | 1 . 1 Processor . | . . . Hackware . | . . . Protection 3 | . 1 2 Artifact . | . . . Weapon 6 | 2 . 4 Energy Gun 1 | . . 1 Energy Cannon . | . . . Ballistic Gun 5 | 2 . 3 Ballistic Cannon . | . . . Launcher . | . . . Special Weapon . | . . . Impact Weapon . | . . . Slashing Weapon . | . . . Piercing Weapon . | . . . Special Melee Weapon . | . . . Unidentified Prototypes . | . . . Parts Lost 4 | . . 4 Power . | . . . Propulsion 2 | . . 2 Utility 1 | . . 1 Weapon 1 | . . 1 Highest Loss Streak 3 | . . 3 To Critical Strikes . | . . . Average Slot Usage (%) 91 | . 99 88 Engine 14 | . 14 14 Leg 4 | . . 5 Wheel 22 | . 28 21 Storage 7 | . 14 4 Protection 13 | . 13 13 Energy Gun 6 | . . 8 Ballistic Gun 21 | . 28 19 Peak Build Rating 16 | 6 7 16 Average Rating 10 | 4 6 11 On Entrance 4 | . 6 7 Naked Turns . | . . . Heaviest Build 36 | 12 15 36 Greatest Support 30 | 20 20 30 Greatest Overweight (x) 2 | . . 2 Average Overweight (x) . | . . . Largest Inventory Capacity 15 | 8 8 15 Average Capacity 7 | 7 8 7 Most Carried 6 | 2 5 6 Average Carried 4 | . 4 5 Final Capacity 15 | 8 8 15 Final Carried 5 | 2 5 5 Class Distribution -------------------- 71% | Mutant 19% | Scavenger-Mutant 9% | Subdweller-Mutant Dominant Class ---------------- Mutant | -10/Materials Mutant | -10/Subcaves Resources | -11 -10 -10 ----------- Run | Yrd Mat Sub Matter Collected 612 | 258 45 309 Remotely . | . . . Salvage Created 438 | . 138 300 Parts 28 | . 8 20 Haulers Intercepted . | . . . Recyclers Shooed . | . . . Parts Field Recycled . | . . . Retrieved Matter . | . . . Parts Self-Destructed 8 | . . 8 Prevented . | . . . Kills | -11 -10 -10 ------- Run | Yrd Mat Sub Combat Hostiles Destroyed 11 | . 3 8 Guns 11 | . 3 8 Classes Destroyed 3 | . 1 2 Swarmer 2 | . . 2 Grunt 3 | . 3 . Subdweller 6 | . . 6 Best Kill Streak 2 | . 2 2 Combat Bots Only 2 | . 2 2 Max Kills in Single Turn 1 | . 1 1 Gunslinging . | . . . Exploded . | . . . Melee . | . . . Uniques/NPCs Destroyed . | . . . Combat | -11 -10 -10 -------- Run | Yrd Mat Sub Hostile Shots Fired 72 | . 19 53 Missed 22 | . 7 15 Damage Taken 914 | . 135 779 Core 252 | . 21 231 Absorbed by Shields . | . . . Core Remaining (%) 100 | 100 . . Volleys Fired 65 | . 13 52 Largest 2 | . 2 2 Hottest 60 | . 40 60 Shots Fired 109 | . 26 83 Gun 109 | . 26 83 Cannon . | . . . Launcher . | . . . Special . | . . . Kinetic 90 | . 26 64 Thermal 19 | . . 19 Explosive . | . . . Electromagnetic . | . . . Robot Hit Streak 8 | . 4 8 Robot Miss Streak 3 | . 3 2 Penetration Max . | . . . Secondary Targets 2 | . 1 1 Max Gunslinging Chain 1 | . 1 1 Shots Hit Robots 57 | . 15 42 Core Hits 23 | . 7 16 Critical Kills 1 | . 1 . Critical Parts Destroyed . | . . . Critical Strikes 1 | . 1 . Destroy 1 | . 1 . Melee Attacks . | . . . Impact . | . . . Slashing . | . . . Piercing . | . . . Sneak Attacks . | . . . Combat Hostiles . | . . . Follow-up Attacks . | . . . Damage Inflicted 713 | . 195 518 Guns 713 | . 195 518 Cannons . | . . . Explosions . | . . . Melee . | . . . Ramming . | . . . Kinetic 713 | . 195 518 Thermal . | . . . Explosive . | . . . Electromagnetic . | . . . Impact . | . . . Slashing . | . . . Piercing . | . . . Highest Corruption . | . . . Average Corruption . | . . . Corruption Purged . | . . . Corruption Blocked . | . . . Overload Shots . | . . . Overflow Damage . | . . . Projectiles . | . . . Explosions . | . . . Melee . | . . . Knockbacks . | . . . Impact . | . . . Kinetic . | . . . Secondary . | . . . Self-Inflicted Damage . | . . . Shots . | . . . Rammed . | . . . Targets Rammed . | . . . Kicked . | . . . Crushed . | . . . Highest Temperature 6 | . 6 . Average Temperature 2 | . 2 . Received Heat Transfer 300 | . 78 222 Siege Activations . | . . . Robots Corrupted . | . . . Combat Hostiles . | . . . Parts Fried . | . . . Impact Corruptions . | . . . Robots Melted . | . . . Combat Hostiles . | . . . Parts Melted 1 | . . 1 Heat Transferred . | . . . Parts Sabotaged . | . . . Parts Stolen . | . . . Parts Stripped . | . . . Power Chain Reactions . | . . . Alert | -11 -10 -10 ------- Run | Yrd Mat Sub Peak Influence 71 | . 71 . Initial . | . . . Average 34 | . 39 . Maximum Alert Level . | . . . Low Security (%) 100 | 100 100 . Level 1 . | . . . Level 2 . | . . . Level 3 . | . . . Level 4 . | . . . Level 5 . | . . . High Security . | . . . Max Security . | . . . Squads Dispatched . | . . . Investigation . | . . . Extermination . | . . . Reinforcement . | . . . Assault . | . . . Garrison . | . . . Intercept . | . . . Searches Triggered . | . . . Construction Impeded . | . . . Haulers Reinforced . | . . . Active Scanning Responses . | . . . Cargo Convoy Interrupts . | . . . Stealth | -11 -10 -10 --------- Run | Yrd Mat Sub Distress Signals . | . . . Communications Jammed . | . . . Distress Signals . | . . . Times Spotted 15 | . 4 11 Peak Tracking Total 4 | . 2 4 Tactical Retreats 1 | . . 1 Traps | -11 -10 -10 ------- Run | Yrd Mat Sub Traps Triggered . | . . . Indirectly . | . . . Trap Hack Attempts . | . . . Triggered . | . . . Disarmed . | . . . Reprogrammed . | . . . Reused . | . . . Traps Extracted . | . . . Installed . | . . . Triggered 1 | . . 1 Machines | -11 -10 -10 ---------- Run | Yrd Mat Sub Machines Disabled 1 | . . 1 Max in Single Turn 1 | . . 1 Machines Repaired . | . . . Machines Dismantled . | . . . Machines Sabotaged . | . . . Overloaded Fab Kills . | . . . Hacking | -11 -10 -10 --------- Run | Yrd Mat Sub Machines Accessed 1 | . . 1 Terminals . | . . . Fabricators . | . . . Repair Stations . | . . . Recycling Units . | . . . Scanalyzers . | . . . Garrison Access . | . . . Total Hacks 1 | . . 1 Successful 1 | . . 1 Failed . | . . . Catastrophic . | . . . Database Lockouts . | . . . Manual . | . . . Terminals . | . . . Fabricators . | . . . Repair Stations . | . . . Recycling Units . | . . . Scanalyzers . | . . . Garrison Access . | . . . Terminal Hacks 1 | . . 1 Derelict Proto ID Bank 1 | . . 1 Fabricator Hacks . | . . . Repair Station Hacks . | . . . Recycling Unit Hacks . | . . . Scanalyzer . | . . . Garrison Access Hacks . | . . . Unauthorized Hacks . | . . . Terminals . | . . . Fabricators . | . . . Repair Stations . | . . . Recycling Units . | . . . Scanalyzers . | . . . Garrison Access . | . . . Data Cores Recovered . | . . . Used . | . . . Hacking Detections . | . . . Full Trace Events . | . . . Feedback Events . | . . . Feedback Blocked . | . . . Robot Schematics Acquired . | . . . Robots Built . | . . . Authchips . | . . . Time . | . . . Total Robot Build Rating . | . . . Part Schematics Acquired . | . . . Parts Built . | . . . Authchips . | . . . Time . | . . . Total Part Build Rating . | . . . Parts Repaired . | . . . Time . | . . . Parts Recycled . | . . . Recycled Matter . | . . . Retrieved Matter . | . . . Retrieved Components . | . . . Parts Scanalyzed . | . . . Part Schematics Acquired . | . . . Parts Damaged . | . . . Bothacking | -11 -10 -10 ------------ Run | Yrd Mat Sub Used RIF Installer . | . . . Robots Hacked . | . . . Non-combat . | . . . Combat . | . . . Robot Hacks Applied . | . . . Relay Couplers Released . | . . . Fabnet Peak Effective % . | . . . Robots Rewired . | . . . Allies Hacked . | . . . Hacks Repelled . | . . . Allies | -11 -10 -10 -------- Run | Yrd Mat Sub Total Allies . | . . . Largest Group . | . . . Highest-Rated Group . | . . . Highest-Rated Ally . | . . . Total Orders . | . . . Ally Attacks . | . . . Total Damage . | . . . Kills . | . . . Allies Corrupted . | . . . Allies Melted . | . . . Intel | -11 -10 -10 ------- Run | Yrd Mat Sub Robot Analysis Total . | . . . Derelict Logs Recovered 2 | . . 2 Drone Launches . | . . . Drone Recoveries . | . . . Exploration | -11 -10 -10 ------------- Run | Yrd Mat Sub Turns Passed 1924 | 59 449 1416 Spaces Moved 1292 | 61 231 1000 Core 4 | 2 . 2 Treads . | . . . Legs 344 | . . 344 Wheels 944 | 59 231 654 Hover . | . . . Flight . | . . . Fastest Speed 50 | 50 80 80 Average Speed 113 | 79 80 122 Slowest Speed 210 | 80 80 210 Overloaded Moves . | . . . Propulsion Burnouts . | . . . Robots Hopped . | . . . Cave-ins Triggered . | . . . Exploration Rate (%) 32 | 4 48 44 Regions Visited 2 Branch Regions 1 Pre-discovered Areas . | . . . Known Exits Taken . | . . . Unknown Exits Taken 2 | 1 1 . Scrap Searched 3 | . . 3 Spaces Dug . | . . . Terrain Destroyed . | . . . Melee . | . . . Projectile . | . . . AOE . | . . . Terrain Rammed . | . . . Walls Destroyed . | . . . Machines Disabled . | . . . Actions | -11 -10 -10 --------- Run | Yrd Mat Sub Total 1643 | 68 468 1107 Wait 250 | . 220 30 Move 1290 | 60 230 1000 Hop . | . . . Pick Up 11 | 2 4 5 Fast Attach 10 | 6 . 4 Attach 4 | . 1 3 Detach 1 | . . 1 Swap 5 | . . 5 Drop 7 | . . 7 Fire 65 | . 13 52 Melee . | . . . Ram . | . . . Kick . | . . . Crush . | . . . Escape Stasis . | . . . Rewire . | . . . Trap . | . . . Miscellaneous . | . . . Route ------- -11/Scrapyard -10/Materials (discovered 3 exits: [*Mat x2] / *Sub) -10/Subcaves (discovered 1 exit: Mat) History --------- Turn | Location | Event 23 | -11/Scrapyard | Discovered new exit (range 16) 60 | -11/Scrapyard | Entered Materials 147 | -10/Materials | Discovered new exit (range 9) 267 | -10/Materials | Discovered new exit (range 9) 318 | -10/Materials | Build established: Mutant 495 | -10/Materials | Discovered new exit (range 3) 509 | -10/Materials | Entered Subcaves 607 | -10/Subcaves | Shifting Twisted Machinery released Sub. Laser 630 | -10/Subcaves | Shifting Twisted Machinery released Mak. System Shield 661 | -10/Subcaves | Core integrity fell below 50% 859 | -10/Subcaves | A Subdweller sparked back to life 859 | -10/Subcaves | A Subdweller sparked back to life 859 | -10/Subcaves | A Subdweller sparked back to life 899 | -10/Subcaves | Core integrity fell below 20% 936 | -10/Subcaves | Lost 3 parts (1n1u1w) 1211 | -10/Subcaves | Identified exit to Materials 1284 | -10/Subcaves | Build established: Scavenger-Mutant 1613 | -10/Subcaves | Visited 4L-MR0's lab 1634 | -10/Subcaves | Found Cargo Legs 1654 | -10/Subcaves | Build established: Mutant 1729 | -10/Subcaves | A swath of the cavern ceiling suddenly collapsed 1925 | -10/Subcaves | Destroyed by 0K-0EH(R) with Subdweller Laser Last Messages --------------- Power Bank Rainbow Chip VL-GR5's Exoskeleton "Deathgrip" Powered Cannon 01623_ 4L-MR0 mumbles to no one in particular: "Damn Subs sneaking around stealing my stuff." 01625_ Testing Chamber breached. 01626_ 4L-MR0 mumbles: "I'm surprised some of them are even willing to come in here given their fear of my usual visitors." 01631_ Dropped Targeting Computer. 01632_ Dropped Lgt. Assault Rifle. 01634_ Acquired Cargo Legs. 01644_ 4L-MR0 mumbles: "Who knows where that last prototype ended up, probably tossed aside somewhere as if it were useless junk..." 01651_ Acquired 10 matter. 01668_ Searching scrap... 01668_ Found Sub. Power Source. 01668_ Found 52 Matter. 01672_ Acquired Sub. Power Source. A swath of the cavern ceiling suddenly collapses. Map ----- +----------------------------------------------------+ | ## #????## ## ###""##???###?????????????? | | #?????#### ###""#????# ##????????????? | | # # #????????## ##????# #????????????? | | ## ## #???##????# #####????## #????????????? | | # # #???# #???# #?????### #????????????? | | ## # ###???# #??# ####### #????????????? | | ? #?#??## #??# # ## #????????????? | | ? ?# ## #?## ##????????????? | | # ?? #?# ##?????????????? | | # ??? #### ## #??????????????? | | ? #??# ?????# #### #??????????????? | | ?????####????## ##??????????????? | | ???????#???### ##???????????????? | | ??????## ### ###????????????????? | | ??????# ##??????????????????? | | ??????# ########???????????????????? | | ??????# ###????????????????????????? | | ??????# ##???????????????????????? | | ??????## ##??????????????????????? | | ???????## ######?????????????????? | | ????????# ##????????????????? | | ????????## ### #????????????????? | | ?????????## ??## ###????????????????? | | ??????????## ???### ##??????????????????? | | ???????????# ??????##### #???????????????????? | | ???????????# ??????????# @ ##???????????????????? | | ??????????? ?????????## #????????????????????? | | ??????????? ??????????# #????????????????????? | | ??????????##??????????# #????????????????????? | | ??????????????????????# #???????????????????? | | ??????????????????????# #??????????????????? | | ?????????????????????? #?????????????????? | | ????????????????????? ### #?????????????????? | | ???????????????????? ??# ##?????????????????? | | ??????????????????? ???# ##??????????????????? | | ?????????????????? ##??? #???????????????????? | | ??????????????????#?????"RR"" ???????????????????? | | ????????????????????????"""" "???????????????????? | | ????????????????????????#"" ###??????????????????? | | ?????????????????????????????????????????????????? | | ?????????????????????????????????????????????????? | | ?????????????????????????????????????????????????? | | ?????????????????????????????????????????????????? | | ?????????????????????????????????????????????????? | | ?????????????????????????????????????????????????? | | ?????????????????????????????????????????????????? | | ?????????????????????????????????????????????????? | | ???????????????????????????????